lending/lending_fUSD_20250418
["ID","MTS","AMOUNT","RATE_DAILY","PERIOD"]
[358333352,1744943432430,-503.79373034,0.000502,2]
[358333353,1744943432440,-1654.95199592,0.000514,120]
[358333354,1744943432450,-218.66565848,0.00051935,120]
[358333355,1744943432459,-923.95770992,0.00052,120]
[358333356,1744943432468,-2235.25,0.00052035,2]
[358333357,1744943432478,-2378.11094988,0.00052035,30]
[358333358,1744943432490,-2758.99590224,0.00052035,30]
[358333359,1744943432501,-2937.37850542,0.00052035,30]
[358333360,1744943432513,-360.37658095,0.00052035,30]
[358333361,1744943432523,-154.91333154,0.00052035,30]
[358333362,1744943432532,-465.84208174,0.00052035,120]
[358333364,1744943432544,-585.97148529,0.00052035,120]
[358333366,1744943432554,-495.06111579,0.00052035,120]
[358333368,1744943432566,-4314.64161092,0.00052035,120]
[358333371,1744943432581,-468.91119907,0.00052035,120]
[358333450,1744943438274,-393.69097478,0.00052035,120]
[358333451,1744943438445,-2450.01510591,0.00052035,120]
[358333452,1744943438457,-4691.69643619,0.00052035,120]
[358333453,1744943438553,-282.23840945,0.00052035,120]
[358333454,1744943438565,-1344.9902802,0.00052035,120]
[358333455,1744943438576,-326.45,0.00052035,120]
[358333456,1744943438598,-633.83527181,0.00052035,120]
[358333457,1744943438611,-156.55839659,0.00052035,30]
[358333458,1744943438620,-181.4282957,0.00052035,30]
[358333459,1744943438630,-6099.43061822,0.00052035,60]
[358333460,1744943438639,-1085.92881324,0.00052035,30]
[358333461,1744943438653,-151.0,0.00053,100]
[358333462,1744943438662,-639.32014078,0.000533,120]
[358333463,1744943438671,-3004.04463518,0.000539,30]
[358333464,1744943438681,-230.59440092,0.00055,30]
[358333465,1744943438691,-173.11,0.000552,54]
[358333466,1744943438700,-173.11,0.000552,54]
[358333467,1744943438710,-173.11,0.000552,54]
[358333468,1744943438719,-173.11,0.000552,54]
[358333469,1744943438730,-173.11,0.000552,54]
[358333470,1744943438740,-173.11,0.000552,54]
[358333471,1744943438749,-173.11,0.000552,54]
[358333472,1744943438759,-173.11,0.000552,54]
[358333473,1744943438768,-173.11,0.000552,54]
[358333474,1744943438777,-173.11,0.000552,54]
[358333475,1744943438787,-173.11,0.000552,54]
[358333476,1744943438799,-173.11,0.000552,54]
[358333477,1744943438809,-500.0,0.000552,120]
[358333479,1744943438818,-151.43,0.00055815,2]
[358333481,1744943438827,-580.0,0.00056,14]
[358333483,1744943438837,-156.92,0.00056918,120]
[358333484,1744943438847,-214.78,0.00057138,120]
[358333486,1744943438856,-842.77,0.00057344,120]
[358333488,1744943438865,-199.44,0.00057844,2]
[358333490,1744943438875,-151.43,0.00058079,2]
[358333492,1744943438885,-163.8,0.000583,2]
[358333494,1744943438895,-1000.0,0.0005862,120]
[358333496,1744943438904,-250.69089158,0.000587,120]
[358333498,1744943438914,-572.27048956,0.0005909,2]
[358333500,1744943438924,-8463.57343346,0.00059556,15]
[358333502,1744943438934,-537.82804553,0.0006,120]
[358333504,1744943438944,-1448.97940888,0.0006,120]
[358333506,1744943438953,-406.1599485,0.0006,30]
[358333508,1744943438962,-183.47185396,0.0006,120]
[358333510,1744943438971,-826.13129805,0.0006,120]
[358333511,1744943438981,-239.41800228,0.0006,30]
[358333512,1744943438991,-1093.94,0.0006,120]
[358333513,1744943439000,-1015.42495243,0.0006,2]
[358333514,1744943439009,-499.95762042,0.0006,120]
[358333515,1744943439019,-151.76175953,0.0006,30]
[358333516,1744943439028,-152.36971994,0.0006,120]
[358333517,1744943439038,-218.66565847,0.00060164,120]
[358333518,1744943439047,-151.43,0.00060343,2]
[358333519,1744943439058,-900.0,0.00060443,120]
[358333520,1744943439067,-1009.22149261,0.000618,120]
[358333521,1744943439076,-2503.80632257,0.00062,120]
[358333522,1744943439086,-214.78,0.00062028,120]
[358333523,1744943439095,-163.8,0.00062186,2]
[358333524,1744943439105,-500.0,0.00062464,15]
[358333525,1744943439114,-151.43,0.00062607,2]
[358333526,1744943439123,-3702.16891281,0.00063387,2]
[358333527,1744943439133,-500.0,0.00064061,120]
[358333528,1744943439142,-151.43,0.0006487,2]
[358333529,1744943439152,-1789.42595639,0.000649,120]
[358333530,1744943439162,-3027.81574821,0.00065,120]
[358333531,1744943439171,-1000.0,0.00065948,120]
[358333532,1744943439181,-252.13546393,0.00066,120]
[358333533,1744943439190,-215.28424796,0.00066,30]
[358333534,1744943439200,-1308.38869997,0.00066,120]
[358333535,1744943439209,-163.8,0.00066073,2]
[358333536,1744943439218,-214.78,0.00066919,120]
[358333537,1744943439227,-151.43,0.00067134,2]
[358333538,1744943439237,-1002.79118924,0.00067943,15]
[358333539,1744943439246,-551.22615562,0.00068,120]
[358333540,1744943439256,-218.66565847,0.00068393,120]
[358333541,1744943439265,-1063.6841686,0.00068393,80]
[358333542,1744943439275,-1210.03895255,0.00068493,120]
[358333543,1744943439285,-1210.03895255,0.00068493,120]
[358333544,1744943439295,-1210.03895255,0.00068493,120]
[358333545,1744943439305,-1210.03895255,0.00068493,120]
[358333546,1744943439314,-1210.03895255,0.00068493,120]
[358333547,1744943439324,-1210.03895255,0.00068493,120]
[358333548,1744943439333,-1210.03895255,0.00068493,120]
[358333549,1744943439343,-1210.03895255,0.00068493,120]
[358333550,1744943439352,-1210.03895255,0.00068493,120]
[358333551,1744943439361,-1210.03895255,0.00068493,120]
[358333552,1744943439371,-1210.03895255,0.00068493,120]
[358333553,1744943439380,-1210.03895255,0.00068493,120]
[358333554,1744943439390,-1210.03895255,0.00068493,120]
[358333555,1744943439399,-1210.03895255,0.00068493,120]
[358333556,1744943439408,-1210.03895255,0.00068493,120]
[358333557,1744943439418,-1210.03895255,0.00068493,120]
[358333558,1744943439427,-1210.03895255,0.00068493,120]
[358333559,1744943439437,-1210.03895255,0.00068493,120]
[358333560,1744943439447,-1210.03895255,0.00068493,120]
[358333561,1744943439456,-1210.03895255,0.00068493,120]
[358333562,1744943439469,-1210.03895255,0.00068493,120]
[358333563,1744943439479,-1210.03895255,0.00068493,120]
[358333564,1744943439488,-1210.03895255,0.00068493,120]
[358333565,1744943439498,-1210.03895255,0.00068493,120]
[358333566,1744943439507,-1210.03895255,0.00068493,120]
[358333567,1744943439516,-1210.03895255,0.00068493,120]
[358333568,1744943439525,-1210.03895255,0.00068493,120]
[358333569,1744943439534,-1210.03895255,0.00068493,120]
[358333570,1744943439543,-1210.03895255,0.00068493,120]
[358333571,1744943439553,-1210.03895255,0.00068493,120]
[358333572,1744943439562,-1210.03895255,0.00068493,120]
[358333573,1744943439571,-1210.03895255,0.00068493,120]
[358333574,1744943439581,-1210.03895255,0.00068493,120]
[358333575,1744943439591,-1210.03895255,0.00068493,120]
[358333576,1744943439600,-1210.03895255,0.00068493,120]
[358333577,1744943439609,-1210.03895255,0.00068493,120]
[358333578,1744943439619,-1210.03895255,0.00068493,120]
[358333579,1744943439628,-1210.03895255,0.00068493,120]
[358333580,1744943439637,-1210.03895255,0.00068493,120]
[358333581,1744943439647,-1210.03895255,0.00068493,120]
[358333582,1744943439660,-1210.03895255,0.00068493,120]
[358333583,1744943439669,-1210.03895255,0.00068493,120]
[358333584,1744943439679,-1210.03895255,0.00068493,120]
[358333585,1744943439688,-1210.03895255,0.00068493,120]
[358333586,1744943439699,-1210.03895255,0.00068493,120]
[358333587,1744943439708,-1210.03895255,0.00068493,120]
[358333588,1744943439718,-1210.03895255,0.00068493,120]
[358333589,1744943439727,-1210.03895255,0.00068493,120]
[358333590,1744943439737,-1210.03895255,0.00068493,120]
[358333591,1744943439746,-1210.03895255,0.00068493,120]
[358333592,1744943439755,-1210.03895255,0.00068493,120]
[358333593,1744943439764,-1210.03895255,0.00068493,120]
[358333594,1744943439774,-1210.03895255,0.00068493,120]
[358333595,1744943439783,-1210.03895255,0.00068493,120]
[358333596,1744943439793,-1210.03895255,0.00068493,120]
[358333597,1744943439802,-1210.03895255,0.00068493,120]
[358333598,1744943439812,-1210.03895255,0.00068493,120]
[358333599,1744943439822,-1210.03895255,0.00068493,120]
[358333600,1744943439831,-500.0,0.00068973,14]
[358333601,1744943439840,-42033.29638768,0.00069,2]
[358333602,1744943439850,-151.43,0.00069398,2]
[358333603,1744943439860,-163.8,0.00069959,2]
[358333604,1744943439869,-1014.09660676,0.0007,120]
[358333605,1744943439880,-276.81299056,0.00070149,120]
[358333606,1744943439889,-299.08290395,0.00070149,120]
[358333607,1744943439898,-545.46649335,0.00070149,120]
[358333608,1744943439908,-234.50703721,0.00070149,120]
[358333609,1744943439918,-151.79547492,0.00070149,120]
[358333610,1744943439928,-234.79443687,0.00070149,120]
[358333611,1744943439938,-545.46649335,0.00070149,120]
[358333612,1744943440121,-150.81993876,0.00070149,120]
[358333613,1744943440131,-545.46649335,0.00070149,120]
[358333614,1744943440141,-545.46649335,0.00070149,120]
[358333615,1744943440150,-545.46649335,0.00070149,120]
[358333616,1744943440159,-545.46649335,0.00070149,120]
[358333617,1744943440169,-545.46649335,0.00070149,120]
[358333618,1744943440178,-545.46649335,0.00070149,120]
[358333619,1744943440187,-545.46649335,0.00070149,120]
[358333620,1744943440197,-545.46649335,0.00070149,120]
[358333621,1744943440206,-545.46649335,0.00070149,120]
[358333622,1744943440216,-545.46649335,0.00070149,120]
[358333623,1744943440225,-545.46649335,0.00070149,120]
[358333625,1744943440234,-545.46649335,0.00070149,120]
[358333627,1744943440244,-545.46649335,0.00070149,120]
[358333629,1744943440254,-545.46649335,0.00070149,120]
[358333631,1744943440271,-545.46649335,0.00070149,120]
[358333634,1744943440282,-545.46649335,0.00070149,120]
[358333636,1744943440292,-545.46649335,0.00070149,120]
[358333637,1744943440302,-545.46649335,0.00070149,120]
[358333638,1744943440312,-37968.87548208,0.0007015,2]
[358333639,1744943440321,-156.92,0.00071148,120]
[358333640,1744943440331,-500.0,0.00071429,120]
[358333641,1744943440341,-151.43,0.00071662,2]
[358333642,1744943440350,-214.78,0.00071809,120]
[358333643,1744943440359,-1000.0,0.00073275,120]
[358333644,1744943440368,-151.43,0.00073926,2]
[358333645,1744943440378,-501.39724127,0.00074452,14]
[358333646,1744943440387,-900.0,0.0007461,120]
[358333647,1744943440395,-8463.57343346,0.00076002,15]
[358333648,1744943440405,-151.43,0.0007619,2]
[358333649,1744943440414,-214.78,0.000767,120]
[358333650,1744943440423,-151.43,0.00078454,2]
[358333651,1744943440433,-8699.50241681,0.00079899,15]
[358333652,1744943440441,-23900.0,0.00079908,2]
[358333653,1744943440450,-1784.19917906,0.0007999,6]
[358333654,1744943440459,-80000.0,0.0008,30]
[358333655,1744943440469,-200.0,0.0008,8]
[358333656,1744943440478,-15425.73541858,0.0008,30]
[358333657,1744943440487,-56940.28407028,0.0008,2]
[358333658,1744943440641,-138529.06438197,0.0008,2]
[358333659,1744943440653,-929.84271673,0.0008,120]
[358333660,1744943440662,-300.0,0.0008,120]
[358333661,1744943440671,-1000.0,0.00080603,120]
[358333662,1744943440680,-151.43,0.00080718,2]
[358333663,1744943440691,-766.8026072,0.00080832,52]
[358333664,1744943440701,-892.09958953,0.00080922,6]
[358333665,1744943440710,-9316.0,0.00080932,120]
[358333666,1744943440719,-10669.93982326,0.0008096,2]
[358333667,1744943440731,-700.0,0.0008097,120]
[358333668,1744943440740,-1100.0,0.0008097,120]
[358333669,1744943440749,-170.53,0.00081036,2]
[358333670,1744943440758,-1616.60231902,0.0008137,30]
[358333671,1744943440767,-214.78,0.0008159,120]
[358333672,1744943440776,-500.0,0.00081944,120]
[358333673,1744943440785,-1999.999999,0.00082,120]
[358333674,1744943440795,-500.0,0.00082192,120]
[358333675,1744943440804,-624.63116205,0.00082192,120]
[358333676,1744943440814,-500.0,0.00082192,120]
[358333677,1744943440824,-151.43,0.00082982,2]
[358333678,1744943440833,-800.0,0.0008494,120]
[358333679,1744943440842,-151.43,0.00085245,2]
[358333680,1744943440851,-156.92,0.00085377,120]
[358333681,1744943440860,-214.78,0.0008648,120]
[358333682,1744943440870,-700.0,0.00087133,120]
[358333684,1744943440879,-800.0,0.00087229,120]
[358333686,1744943440888,-151.43,0.00087509,2]
[358333688,1744943440897,-1000.0,0.0008793,120]
[358333689,1744943440907,-1539.0,0.00089,14]
[358333691,1744943440916,-301.53,0.0009,2]
[358333693,1744943440925,-214.78,0.00091371,120]
[358333694,1744943440934,-500.0,0.00091994,120]
[358333695,1744943440943,-892.09958953,0.00092112,7]
[358333696,1744943440954,-8699.50241675,0.00092122,15]
[358333697,1744943440963,-8463.57343346,0.00092448,15]
[358333698,1744943440972,-500.0,0.000939,120]
[358333699,1744943440982,-500.0,0.00094174,120]
[358333700,1744943440991,-268.13961461,0.0009429,7]
[358333701,1744943440999,-500.0,0.00094448,120]
[358333702,1744943441009,-500.0,0.00094722,120]
[358333703,1744943441018,-500.0,0.00094996,120]
[358333704,1744943441028,-169.46352897,0.00094996,120]
[358333705,1744943441036,-222.39,0.00094996,120]
[358333706,1744943441045,-123997.04998046,0.00095,120]
[358333707,1744943441055,-500.0,0.0009527,120]
[358333709,1744943441064,-874.5963,0.00095442,2]
[358333710,1744943441073,-500.0,0.00095544,120]
[358333711,1744943441082,-500.0,0.00095818,120]
[358333712,1744943441092,-241.65863799,0.00096,120]
[358333713,1744943441100,-500.0,0.00096092,120]
[358333714,1744943441109,-214.78,0.00096261,120]
[358333715,1744943441118,-500.0,0.00096366,120]
[358333716,1744943441127,-572.23,0.0009664,120]
[358333717,1744943441137,-166.37,0.00096926,120]
[358333718,1744943441146,-222.39,0.00098747,120]
[358333719,1744943441155,-1799.99999905,0.000989,120]
[358333720,1744943441164,-496.68,0.000999,15]
[358333721,1744943441173,-500.0,0.000999,36]
[358333722,1744943441183,-343.24316216,0.0009999,120]
[358333723,1744943441192,-8768.0,0.001,120]
[358333724,1744943441203,-1494.47304167,0.001,120]
[358333725,1744943441487,-3.44109017,0.00089773,2]
[358333726,1744943441510,-147.98890983,0.00089773,2]
[358333727,1744943441519,-151.43,0.00092037,2]
[358333728,1744943441529,-151.43,0.00094301,2]
[358333729,1744943441538,-151.43,0.00096565,2]
[358333730,1744943441547,-151.43,0.00098829,2]
[358333731,1744943441557,-505.52695833,0.001,120]
[358333732,1744943441566,-514.11,0.001,120]
[358333733,1744943441576,-218.41890579,0.001,120]
[358333734,1744943441585,-155.0,0.001,120]
[358333735,1744943441594,-1448.69638736,0.001,120]
[358333736,1744943441604,-173.55256696,0.001,120]
[358333737,1744943441613,-400.0,0.001,120]
[358333738,1744943441622,-1269.82,0.00100601,2]
[358333739,1744943441631,-200.0,0.00100771,30]
[358333740,1744943441641,-892.09958953,0.0010099,8]
[358333741,1744943441653,-201.46402116,0.00101,120]
[358333742,1744943441669,-8566.53597884,0.00101,120]
[358333743,1744943441679,-500.0,0.00101014,2]
[358333744,1744943441688,-200.0,0.00101085,2]
[358333745,1744943441701,-214.78,0.00101152,120]
[358333746,1744943441711,-150.0,0.00101491,30]
[358333747,1744943441720,-191.8,0.00101586,30]
[358333748,1744943441732,-1311.68,0.00101847,2]
[358333749,1744943441742,-8768.0,0.00102,120]
[358333750,1744943441752,-151.0,0.00102097,101]
[358333751,1744943441762,-222.39,0.00102498,120]
[358333752,1744943441771,-8768.0,0.00103,120]
[358333753,1744943441781,-892.09958953,0.0010399,8]
[358333754,1744943441791,-8768.0,0.00104,120]
[358333755,1744943441800,-8699.50241675,0.00104344,15]
[358333756,1744943441810,-700.0,0.00104546,120]
[358333757,1744943441820,-1063.68416858,0.00104694,80]
[358333758,1744943441830,-8768.0,0.00105,120]
[358333759,1744943441840,-8768.0,0.00106,120]
[358333760,1744943441849,-214.78,0.00106042,120]
[358333761,1744943441859,-222.39,0.00106249,120]
[358333762,1744943441868,-892.09958953,0.0010699,9]
[358333763,1744943441878,-1153.26626705,0.00107,120]
[358333764,1744943441889,-2537.32982075,0.00107,120]
[358333765,1744943443296,-2862.32610858,0.00107,120]
[358333772,1744943446352,-40.69610163,0.00107,120]
[358333773,1744943446365,-2174.38170199,0.00107,120]
[358333774,1744943446376,-900.0,0.00107177,120]
[358333775,1744943446386,-300.0,0.001075,120]
[358333776,1744943446395,-300.0,0.001075,120]
[358333777,1744943446405,-300.0,0.001075,120]
[358333778,1744943446415,-300.0,0.001075,120]
[358333779,1744943446425,-301.59002767,0.001075,120]
[358333780,1744943446434,-8768.0,0.00108,120]
[358333781,1744943446444,-8463.57343346,0.00108894,15]
[358333782,1744943446453,-900.0,0.00108917,120]
[358333783,1744943446463,-8768.0,0.00109,120]
[358333784,1744943446473,-1000.0,0.00109589,120]
[358333785,1744943446483,-500.0,0.00109589,15]
[358333786,1744943446494,-462.595,0.00109698,120]
[358333787,1744943446504,-153.9234,0.00109799,120]
[358333788,1744943446514,-1280.6012,0.001098,120]
[358333789,1744943446524,-150.0,0.001098,2]
[358333790,1744943446534,-151.56608145,0.001098,102]
[358333791,1744943446544,-892.09958953,0.0010989,9]
[358333792,1744943446554,-18665.3047,0.001099,120]
[358333793,1744943446564,-230.514,0.001099,120]
[358333794,1744943446574,-222.39,0.0011,120]
[358333795,1744943446585,-1684.672691,0.0011,120]
[358333796,1744943446597,-7083.327309,0.0011,120]
[358333797,1744943446607,-962.76263684,0.0011,120]
[358333798,1744943446616,-500.0,0.00110575,2]
[358333799,1744943446625,-900.0,0.00110636,120]
[358333800,1744943446635,-214.78,0.00110932,120]
[358333802,1744943446645,-892.09958953,0.0011099,9]
[358333804,1744943446658,-8768.0,0.00111,120]
[358333806,1744943446668,-1000.0,0.00111546,120]
[358333808,1744943446677,-8768.0,0.00112,120]
[358333810,1744943446687,-15156.66871958,0.00113,120]
[358333812,1744943446697,-8768.0,0.00113,120]
[358333814,1744943446707,-892.09958953,0.00113493,9]
[358333816,1744943446716,-1000.0,0.00113503,120]
[358333818,1744943446725,-1066.54,0.00114,120]
[358333820,1744943446736,-1009.43962457,0.00115,30]
[358333822,1744943446746,-292.11,0.001153,7]
[358333824,1744943446755,-1000.0,0.0011546,120]
[358333826,1744943446765,-214.78,0.00115823,120]
[358333828,1744943446774,-3600.0,0.001164,120]
[358333830,1744943446783,-8699.50241675,0.00116567,15]
[358333832,1744943446792,-614.77,0.00117,120]
[358333834,1744943446801,-700.0,0.00117342,120]
[358333836,1744943446811,-1000.0,0.00117417,120]
[358333838,1744943446820,-500.0,0.0011835,60]
[358333840,1744943446829,-152.69658,0.001188,120]
[358333843,1744943446838,-214.1626,0.00118887,120]
[358333845,1744943446847,-2213.0,0.00118987,120]
[358333847,1744943446857,-2477.7632849,0.00119,120]
[358333849,1744943446866,-500.0,0.0011915,30]
[358333851,1744943446876,-2180.58163422,0.001192,120]
[358333853,1744943446886,-1000.0,0.00119374,120]
[358333855,1744943446896,-150.88129851,0.001194,120]
[358333857,1744943446905,-892.09958953,0.00119437,11]
[358333859,1744943446914,-10139.0044,0.00119447,120]
[358333861,1744943446924,-1784.19917906,0.00119479,11]
[358333863,1744943446934,-487.14147694,0.00119479,30]
[358333865,1744943446943,-95007.3506024,0.00119489,120]
[358333867,1744943446952,-2676.29876859,0.0011949,11]
[358333869,1744943446962,-109999.8507491,0.001195,120]
[358333871,1744943446971,-892.09958953,0.00119527,11]
[358333873,1744943446980,-892.09958953,0.00119537,11]
[358333875,1744943446989,-55311.14060767,0.00119547,120]
[358333877,1744943446998,-1100.0,0.001198,43]
[358333879,1744943447008,-2228.50349496,0.0011989,120]
[358333881,1744943447018,-1000.0,0.001199,120]
[358333883,1744943447027,-1508.9635,0.001199,120]
[358333885,1744943447038,-1000.0,0.001199,120]
[358333887,1744943447047,-1700.0,0.001199,43]
[358333889,1744943447056,-700.0,0.0011997,120]
[358333891,1744943447066,-513.94340594,0.00119973,60]
[358333893,1744943447075,-158.0,0.0011999,120]
[358333895,1744943447085,-252.59817423,0.0011999,120]
[358333897,1744943447094,-300.0,0.00119999,90]
[358333899,1744943447103,-500.0,0.00119999,120]
[358333901,1744943447112,-273.10497182,0.00119999,120]
[358333903,1744943447122,-300.0,0.00119999,90]
[358333905,1744943447131,-500.0,0.00119999,120]
[358333907,1744943447141,-163358.54165022,0.0012,120]
[358333909,1744943447151,-800.0,0.0012,120]
[358333911,1744943447161,-1000.0,0.0012,120]
[358333913,1744943447171,-190.0,0.0012,120]
[358333915,1744943447180,-3804.0,0.0012,120]
[358333917,1744943447190,-3266.84970144,0.0012,120]
[358333919,1744943447202,-2569.99524723,0.0012,120]
[358333921,1744943447212,-708.13,0.0012,60]
[358333923,1744943447222,-151.0,0.0012,120]
[358333925,1744943447231,-151.0,0.0012,120]
[358333927,1744943447240,-151.0,0.0012,120]
[358333929,1744943447249,-151.0,0.0012,120]
[358333931,1744943447259,-151.0,0.0012,120]
[358333933,1744943447268,-151.0,0.0012,120]
[358333935,1744943447277,-299.170853,0.0012,120]
[358333937,1744943447287,-151.0,0.0012,120]
[358333939,1744943447296,-156.587,0.0012,120]
[358333941,1744943447305,-162.380719,0.0012,120]
[358333943,1744943447315,-168.3888056,0.0012,120]
[358333945,1744943447324,-174.61919141,0.0012,120]
[358333946,1744943447334,-181.08010149,0.0012,120]
[358333947,1744943447343,-295.05494943,0.0012,120]
[358333949,1744943447352,-500.0,0.0012,120]
[358333951,1744943447362,-518.5,0.0012,120]
[358333953,1744943447372,-537.6845,0.0012,120]
[358333955,1744943447381,-557.5788265,0.0012,120]
[358333956,1744943447390,-578.20924308,0.0012,120]
[358333957,1744943447399,-599.60298507,0.0012,120]
[358333958,1744943447408,-621.78829552,0.0012,120]
[358333959,1744943447418,-1274.22302874,0.0012,120]
[358333960,1744943447427,-200.0,0.0012,120]
[358333961,1744943447436,-207.4,0.0012,120]
[358333962,1744943447445,-215.0738,0.0012,120]
[358333963,1744943447456,-223.0315306,0.0012,120]
[358333964,1744943447465,-231.28369723,0.0012,120]
[358333965,1744943447475,-239.84119403,0.0012,120]
[358333966,1744943447485,-248.71531821,0.0012,120]
[358333967,1744943447496,-339.90005021,0.0012,120]
[358333968,1744943447508,-155.0,0.0012,120]
[358333969,1744943447517,-155.0,0.0012,120]
[358333970,1744943447527,-169.34848666,0.0012,120]
[358333971,1744943447537,-200.0,0.0012,120]
[358333972,1744943447546,-207.4,0.0012,120]
[358333973,1744943447556,-305.95901687,0.0012,120]
[358333974,1744943447565,-153.520968,0.0012,120]
[358333975,1744943447575,-151.0,0.0012,120]
[358333976,1744943447584,-156.412105,0.0012,120]
[358333977,1744943447595,-151.0,0.0012,120]
[358333978,1744943447604,-214.78,0.00120713,120]
[358333979,1744943447614,-151.56608142,0.0012081,116]
[358333980,1744943447623,-243.42,0.001211,14]
[358333981,1744943447633,-500.0,0.00121254,120]
[358333982,1744943447643,-152.69658,0.001213,120]
[358333983,1744943447657,-1000.0,0.00121331,120]
[358333984,1744943447666,-500.0,0.0012257,120]
[358333985,1744943447675,-1684.51741736,0.00123288,120]
[358333986,1744943447684,-152.69659,0.001238,120]
[358333987,1744943447694,-1000.0,0.00123829,60]
[358333988,1744943447704,-5000.0,0.001239,120]
[358333989,1744943447713,-500.0,0.00124238,120]
[358333990,1744943447722,-1001.58818391,0.00124629,30]
[358333991,1744943447731,-402.84654059,0.0012467,120]
[358333992,1744943447741,-700.0,0.0012467,120]
[358333993,1744943447753,-1000.0,0.00125,120]
[358333994,1744943447762,-700.0,0.00125268,120]
[358333995,1744943447772,-8463.57343346,0.00125339,15]
[358333996,1744943447781,-214.78,0.00125604,120]
[358333997,1744943447790,-152.4623622,0.00125999,120]
[358333998,1744943447799,-500.0,0.00126258,120]
[358333999,1744943447808,-152.69658,0.001263,120]
[358334000,1744943447818,-700.0,0.00126635,120]
[358334001,1744943447828,-205.0,0.00127205,120]
[358334002,1744943447838,-938.24441878,0.00128682,120]
[358334003,1744943447847,-250.0,0.00128743,120]
[358334004,1744943447857,-500.0,0.00128763,120]
[358334005,1744943447866,-8699.50241675,0.00128789,15]
[358334006,1744943447875,-500.0,0.0013,120]
[358334007,1744943447885,-708.13,0.0013,60]
[358334008,1744943447894,-151.56608142,0.0013182,120]
[358334009,1744943447903,-265.35586942,0.00132616,120]
[358334010,1744943447913,-15013.0,0.00132617,90]
[358334011,1744943447922,-257.0,0.00132986,120]
[358334012,1744943447931,-1331.00484655,0.00133848,60]
[358334013,1744943447941,-1940.0,0.00134789,120]
[358334014,1744943447951,-2000.0,0.00135,120]
[358334015,1744943447961,-150.0,0.0013589,30]
[358334016,1744943447970,-349.81,0.0013589,30]
[358334017,1744943447980,-752.13711469,0.00136,3]
[358334018,1744943447991,-1680.8535453,0.00136566,120]
[358334019,1744943448000,-265.35586942,0.00136598,120]
[358334020,1744943448010,-265.35586942,0.00136598,120]
[358334021,1744943448019,-265.35586942,0.00136598,120]
[358334022,1744943448029,-265.35586942,0.00136598,120]
[358334023,1744943448038,-265.35586942,0.00136598,120]
[358334024,1744943448048,-265.35586942,0.00136598,120]
[358334025,1744943448057,-265.35586942,0.00136598,120]
[358334026,1744943448067,-265.35586942,0.00136598,120]
[358334027,1744943448076,-265.35586942,0.00136598,120]
[358334028,1744943448086,-300.0,0.00136598,90]
[358334029,1744943448095,-194.402643,0.00136599,120]
[358334030,1744943448104,-17000.30360343,0.00136599,120]
[358334031,1744943448146,-2807.92204793,0.00136599,120]
[358334032,1744944325718,5000.0,0.0002,2]
[358334033,1744944330095,-427.5888058,0.0002799,2]
[358334034,1744944341022,1558.54175911,0.0002,2]
[358334035,1744944426112,-342.60407135,0.00034448,2]
[358334036,1744944426134,-250.0,0.00034498,2]
[358334037,1744944426155,-150.0,0.00034548,10]
[358334038,1744944426176,-250.0,0.00037893,2]
[358334039,1744944426197,-150.0,0.00045589,10]
[358334040,1744944426220,-250.0,0.000484,2]
[358334041,1744944426246,-342.60407135,0.00050673,2]
[358334042,1744944426268,-3212.235428,0.00050773,5]
[358334043,1744944426290,-212.4617084,0.00051858,120]
[358334044,1744944426310,-500.0,0.00051958,30]
[358334045,1744944426330,-497.5787,0.00051958,2]
[358334046,1744944426351,-680.0,0.00051972,15]